Cogmind - Beta 16 @@@ ROGUE MODE // 2025.12.25 @ 07:15:11 Player: mm79 Result: Self-destructed Performance ------------- Evolutions (2) 1000 Regions Visited (6) 1200 Robots Destroyed (53) 265 Value Destroyed (1587) 1587 Prototype IDs (8) 160 Alien Tech Used (0) 0 Bonus (942) 942 TOTAL SCORE: 5154 Bonus ------- High Alert Combat Kills 52 Follower Combat Kills 190 Entered Garrisons 200 Used RIF Installer 500 Cogmind --------- Core Integrity 388/550 Matter 300/300 Energy 160/160 System Corruption 0% Temperature Cool (0) Movement Hovering (116) Ox1 Location -8/Garrison Parts ------- > --- POWER (1) -------- Light Nuclear Core > --- PROPULSION (4) --- Airjet Airjet > --- UTILITY (4) ------ Large Storage Unit Hacking Suite System Shield > --- WEAPON (2) ------- Enhanced Autogun Katana > --- INVENTORY (15) --- Light Nuclear Core High-capacity Battery (250) Weight Redist. System Improved Sensor Array Transport Network Coupler Advanced Melee Analysis Suite Insulated Plating System Shield Enhanced Autogun Enhanced Autogun Mini Grenade Launcher Signal Generator Peak State ------------ > --- POWER ------------ Heavy Ion Engine > --- PROPULSION ------- Airjet Airjet Airjet Airjet > --- UTILITY ---------- Large Storage Unit Reaction Control System Hacking Suite System Shield > --- WEAPON ----------- Enhanced Autogun Enhanced Autogun > --- INVENTORY -------- Improved Ion Engine Light Nuclear Core Airjet Airjet Airjet Airjet High-capacity Battery Reflective Plating Insulated Plating System Shield Enhanced Autogun Mini Grenade Launcher Katana Signal Generator [Rating: 37] Favorites ----------- Power Ion Engine Engine Ion Engine Power Core Light Nuclear Core Propulsion Airjet Treads Armored Treads Leg Titanium Leg Wheel Wheel Hover Unit Airjet Flight Unit Improved Flight Unit Utility Large Storage Unit Device Seismic Detector Storage Large Storage Unit Hackware System Shield Protection Reflective Plating Weapon Enhanced Autogun Energy Gun Medium Laser Ballistic Gun Enhanced Autogun Ballistic Cannon Assault Cannon Launcher Mini Grenade Launcher Special Weapon Mining Laser Slashing Weapon Katana Build | -11 -10 -10 -10 -9 -8 -8 ------- Run | Yrd Mat Min Exi Min Mat Gar Slots Evolved 4 | . . . . . 4 . Power . | . . . . . . . Propulsion 2 | . . . . . 2 . Utility 2 | . . . . . 2 . Weapon . | . . . . . . . Parts Attached 58 | 7 4 1 2 . 38 6 Power 8 | 1 . 1 . . 5 1 Engine 7 | 1 . 1 . . 5 . Core 1 | . . . . . . 1 Reactor . | . . . . . . . Propulsion 24 | 2 2 . . . 16 4 Treads 4 | . . . . . 4 . Leg 7 | . . . . . 7 . Wheel 4 | 2 1 . . . 1 . Hover 8 | . . . . . 4 4 Flight 1 | . 1 . . . . . Utility 14 | 2 1 . 1 . 10 . Device 5 | 1 . . . . 4 . Storage 5 | 1 1 . . . 3 . Processor . | . . . . . . . Hackware 2 | . . . . . 2 . Protection 2 | . . . 1 . 1 . Artifact . | . . . . . . . Weapon 12 | 2 1 . 1 . 7 1 Energy Gun 2 | 1 . . 1 . . . Energy Cannon . | . . . . . . . Ballistic Gun 4 | 1 . . . . 3 . Ballistic Cannon 1 | . . . . . 1 . Launcher 3 | . . . . . 3 . Special Weapon 1 | . 1 . . . . . Impact Weapon . | . . . . . . . Slashing Weapon 1 | . . . . . . 1 Piercing Weapon . | . . . . . . . Special Melee Weapon . | . . . . . . . Unidentified Prototypes 4 | . 1 . . . 3 . Parts Lost 13 | . 1 1 . . 3 8 Power 2 | . . . . . 1 1 Propulsion 8 | . 1 1 . . . 6 Utility 3 | . . . . . 2 1 Weapon . | . . . . . . . Highest Loss Streak 4 | . 1 1 . . 1 4 To Critical Strikes . | . . . . . . . Average Backups 12 | 1 10 14 14 13 12 11 Power 1 | . 1 1 1 1 . . Propulsion 6 | . 6 7 7 7 7 1 Utility 1 | . 1 3 2 2 1 6 Weapon 2 | 1 1 3 3 3 2 3 Tool/Special . | . . . . . . . Unused Backups 23 | . 2 . . . 13 8 Power 1 | . . . . . . 1 Propulsion 10 | . . . . . 10 . Utility 8 | . 1 . . . 1 6 Weapon 4 | . 1 . . . 2 1 Tool/Special . | . . . . . . . Average Slot Usage (%) 91 | . 100 96 60 66 94 96 Engine 10 | . 14 14 14 14 8 2 Treads 8 | . . . . . 16 . Leg 2 | . . . . . 5 . Wheel 9 | . 28 25 14 14 1 . Hover 8 | . . . . . 9 33 Device 9 | . 14 14 1 . 9 9 Storage 14 | . 14 14 14 14 16 9 Hackware 3 | . . . . . 2 18 Protection 5 | . . . 13 14 6 . Energy Gun 5 | . 14 14 1 4 3 . Ballistic Gun 10 | . 11 14 1 4 11 11 Ballistic Cannon 1 | . . . . . 2 . Peak Build Rating 37 | 7 9 10 10 10 37 36 Average Rating 20 | 5 8 9 7 8 28 32 On Entrance 11 | . 7 9 9 7 10 36 Avg Prop Armor Cover (%) 5 | . . . . . 5 . Naked Turns . | . . . . . . . Heaviest Build 41 | 15 30 30 30 33 41 34 Greatest Support 83 | 26 26 20 10 10 83 36 Greatest Overweight (x) 3 | . 1 2 2 3 3 1 Average Overweight (x) . | . . 1 2 2 . . Largest Inventory Capacity 15 | 8 15 15 15 15 15 15 Average Capacity 14 | 7 14 15 15 15 14 15 Most Carried 15 | 4 15 15 15 15 15 15 Average Carried 12 | 2 10 14 14 14 13 11 Final Capacity 15 | 8 15 15 15 15 15 15 Final Carried 15 | 4 15 15 15 15 15 12 Class Distribution -------------------- 69% | Mutant 16% | Scavenger-Mutant 14% | Hacker-Mutant Dominant Class ---------------- Mutant | -10/Materials Mutant | -10/Mines Mutant | -10/Exiles Mutant | -9/Mines Mutant | -8/Materials Hacker-Mutant | -8/Garrison Resources | -11 -10 -10 -10 -9 -8 -8 ----------- Run | Yrd Mat Min Exi Min Mat Gar Matter Collected 1703 | 284 89 46 28 26 999 231 Remotely . | . . . . . . . Salvage Created 1858 | 27 209 56 . . 1356 210 Parts 100 | 6 12 3 . . 74 5 Haulers Intercepted 4 | . . . . . 4 . Recyclers Shooed . | . . . . . . . Parts Field Recycled . | . . . . . . . Retrieved Matter . | . . . . . . . Parts Self-Destructed . | . . . . . . . Prevented . | . . . . . . . Parts Restored . | . . . . . . . Kills | -11 -10 -10 -10 -9 -8 -8 ------- Run | Yrd Mat Min Exi Min Mat Gar Combat Hostiles Destroyed 39 | . 5 3 . . 25 6 Guns 27 | . 5 3 . . 15 4 Cannons 3 | . . . . . 3 . AOE 9 | . . . . . 7 2 Classes Destroyed 11 | 1 1 1 . . 8 . Worker 3 | . . . . . 3 . Builder 2 | . . . . . 2 . Tunneler 3 | 2 . . . . 1 . Hauler 4 | . . . . . 4 . Recycler 2 | . . . . . 2 . Swarmer 6 | . . 3 . . 3 . Cutter 2 | . . . . . 2 . Grunt 21 | . 5 . . . 10 6 Brawler 1 | . . . . . 1 . Sentry 7 | . . . . . 7 . Hunter 2 | . . . . . 2 . Best Kill Streak 12 | 1 3 3 . . 12 3 Combat Bots Only 8 | . 3 3 . . 8 3 Max Kills in Single Turn 4 | 1 1 2 . . 4 1 Gunslinging . | . . . . . . . Exploded 2 | . . . . . 2 1 Melee . | . . . . . . . Uniques/NPCs Destroyed . | . . . . . . . Combat | -11 -10 -10 -10 -9 -8 -8 -------- Run | Yrd Mat Min Exi Min Mat Gar Hostile Shots Fired 187 | . 22 14 . 4 103 44 Missed 62 | . 4 5 . . 37 16 Hits 125 | . 18 9 . 4 66 28 Melee 2 | . . . . . . 2 Projectile 123 | . 18 9 . 4 66 26 AOE 1 | . . . . . 1 . Critical Strikes 5 | . 1 . . . 4 . Damage Taken 1673 | . 220 82 . 65 805 501 Core 252 | . 57 33 . . 100 62 Absorbed by Shields 192 | . . . . . 141 51 Ignored by Resistances 58 | . . . . . 58 . Core Remaining (%) 82 | 100 . . . 64 . . Volleys Fired 153 | 8 19 3 . 3 92 28 Largest 2 | 2 2 2 . 2 2 2 Hottest 100 | 70 100 70 . 85 100 55 Shots Fired 252 | 16 35 7 . 6 153 35 Gun 213 | 16 33 7 . 6 122 29 Cannon 26 | . . . . . 26 . Launcher 10 | . . . . . 4 6 Special 3 | . 2 . . . 1 . Kinetic 185 | 8 16 4 . 3 125 29 Thermal 57 | 8 19 3 . 3 24 . Explosive 10 | . . . . . 4 6 Electromagnetic . | . . . . . . . Robot Hit Streak 17 | 4 7 5 . 5 17 9 Robot Miss Streak 4 | 1 2 3 . 4 2 3 Penetration Max . | . . . . . . . Secondary Targets 3 | . . 1 . . 2 . Max Gunslinging Chain 1 | . . 1 . . 1 . Shots Hit Robots 165 | 10 24 4 . 2 104 21 Core Hits 89 | 3 9 3 . . 59 15 Critical Kills 3 | . 1 . . . 2 . Critical Parts Destroyed . | . . . . . . . Critical Strikes 7 | . 2 1 . . 4 . Burn 4 | . 1 1 . . 2 . Destroy 3 | . 1 . . . 2 . Melee Attacks 4 | . . . . . . 4 Impact . | . . . . . . . Slashing 4 | . . . . . . 4 Piercing . | . . . . . . . Sneak Attacks 1 | . . . . . . 1 Combat Hostiles . | . . . . . . . Follow-up Attacks . | . . . . . . . Damage Inflicted 4204 | 128 300 63 . 25 2827 861 Guns 2375 | 128 300 63 . 25 1562 297 Cannons 345 | . . . . . 345 . Explosions 1383 | . . . . . 920 463 Melee 101 | . . . . . . 101 Ramming . | . . . . . . . Kinetic 2147 | 39 149 39 . 11 1612 297 Thermal 970 | 89 151 24 . 14 692 . Explosive 986 | . . . . . 523 463 Electromagnetic . | . . . . . . . Impact . | . . . . . . . Slashing 101 | . . . . . . 101 Piercing . | . . . . . . . Highest Corruption 3 | . 3 3 3 3 . . Average Corruption 3 | . 3 3 3 3 . . Corruption Purged . | . . . . . . . Corruption Blocked . | . . . . . . . Effects 19 | . 6 7 4 2 . . Message Errors 6 | . 2 1 2 1 . . Matter Fused 2 | . 1 1 . . . . Heat Flow Errors 3 | . 2 . 1 . . . Energy Discharges 2 | . . 2 . . . . Parts Fused 1 | . . 1 . . . . Data Loss (minor) 3 | . 1 1 1 . . . Misfires 1 | . . 1 . . . . Alerts 1 | . . . . 1 . . Overload Shots . | . . . . . . . Overflow Damage 31 | . . . . . 12 19 Projectiles . | . . . . . . . Explosions 31 | . . . . . 12 19 Melee . | . . . . . . . Knockbacks 4 | . . . . . 4 . Impact . | . . . . . . . Kinetic 3 | . . . . . 3 . Secondary 1 | . . . . . 1 . Self-Inflicted Damage 90 | . . . . . . 90 Shots 5 | . . . . . . 5 Rammed . | . . . . . . . Targets Rammed . | . . . . . . . Kicked . | . . . . . . . Crushed . | . . . . . . . Highest Temperature 195 | 65 195 27 154 99 125 51 Average Temperature 41 | 28 67 14 77 52 32 19 Received Heat Transfer 705 | . 138 21 . . 342 204 Siege Activations . | . . . . . . . Martial Activations . | . . . . . . . Shielding Activations . | . . . . . . . Robots Disrupted . | . . . . . . . Combat Hostiles . | . . . . . . . Robots Corrupted . | . . . . . . . Combat Hostiles . | . . . . . . . Parts Fried . | . . . . . . . Impact Corruptions . | . . . . . . . Robots Melted . | . . . . . . . Combat Hostiles . | . . . . . . . Parts Melted 3 | . 1 1 . . 1 . Heat Transferred 2163 | 259 518 148 . 37 1201 . Parts Sabotaged . | . . . . . . . Parts Stolen . | . . . . . . . Parts Stripped . | . . . . . . . Power Chain Reactions . | . . . . . . . Alert | -11 -10 -10 -10 -9 -8 -8 ------- Run | Yrd Mat Min Exi Min Mat Gar Maximum Alert Level 2 | . . . . . 2 2 Low Security (%) 72 | 100 100 100 . 100 69 . Level 1 12 | . . . . . 16 32 Level 2 14 | . . . . . 14 67 Level 3 . | . . . . . . . Level 4 . | . . . . . . . Level 5 . | . . . . . . . High Security . | . . . . . . . Max Security . | . . . . . . . Peak Influence 489 | 5 80 81 . . 489 448 Initial 307 | . . 11 . . . 307 Average 125 | . 27 37 . . 140 394 Influence Increases 1461 | 10 209 91 . . 890 261 Destroy 0b10 Robot/C 900 | . 100 80 . . 500 220 Destroy 0b10 Robot/NC 70 | 10 . . . . 60 . Destroy Leader 188 | . 40 10 . . 138 . Allied During Kill 18 | . . 1 . . . 17 Successful Hack 54 | . 22 . . . 32 . Disable Machine 60 | . . . . . 60 . Destroy Structure 51 | . 2 . . . 25 24 Partial Spotted 75 | . 15 . . . 60 . Lose Combat Pursuer 45 | . 30 . . . 15 . Influence Decreases 1013 | 10 179 121 . . 417 286 Entered New Map 185 | . . 19 . . . 166 Time Decay 656 | 10 169 80 . . 397 . Lost Part 120 | . 10 10 . . 20 80 Lost Ally 52 | . . 12 . . . 40 Squads Dispatched 10 | . 6 1 . . 3 . Investigation 4 | . 4 . . . . . Extermination . | . . . . . . . Reinforcement 5 | . 2 . . . 3 . Assault 1 | . . 1 . . . . Garrison . | . . . . . . . Intercept . | . . . . . . . Searches Triggered . | . . . . . . . Construction Impeded 1 | . . . . . 1 . Haulers Reinforced . | . . . . . . . Active Scanning Responses . | . . . . . . . Cargo Convoy Interrupts . | . . . . . . . Stealth | -11 -10 -10 -10 -9 -8 -8 --------- Run | Yrd Mat Min Exi Min Mat Gar Distress Signals 1 | . 1 . . . . . Communications Jammed . | . . . . . . . Distress Signals . | . . . . . . . Times Spotted 80 | . 13 8 . 12 38 9 Peak Tracking Total 8 | . 5 4 . 8 8 3 Tactical Retreats 4 | . 1 . . 2 1 . Traps | -11 -10 -10 -10 -9 -8 -8 ------- Run | Yrd Mat Min Exi Min Mat Gar Traps Triggered 5 | . 3 . . . . 2 Indirectly . | . . . . . . . Trap Hack Attempts . | . . . . . . . Triggered . | . . . . . . . Disarmed . | . . . . . . . Reprogrammed . | . . . . . . . Reused . | . . . . . . . Traps Extracted . | . . . . . . . Installed . | . . . . . . . Triggered . | . . . . . . . Machines | -11 -10 -10 -10 -9 -8 -8 ---------- Run | Yrd Mat Min Exi Min Mat Gar Machines Disabled 4 | . . . . . 4 . Max in Single Turn 3 | . . . . . 3 . Machines Repaired . | . . . . . . . Machines Dismantled . | . . . . . . . Machines Sabotaged . | . . . . . . . Overloaded Fab Kills . | . . . . . . . Hacking | -11 -10 -10 -10 -9 -8 -8 --------- Run | Yrd Mat Min Exi Min Mat Gar Machines Accessed 23 | . 6 . 4 . 13 . Terminals 14 | . 5 . . . 9 . Fabricators . | . . . . . . . Repair Stations . | . . . . . . . Recycling Units 3 | . 1 . . . 2 . Scanalyzers 1 | . . . . . 1 . Garrison Access 1 | . . . . . 1 . Total Hacks 63 | . 18 . 4 . 41 . Successful 40 | . 9 . 4 . 27 . Failed 22 | . 9 . . . 13 . Catastrophic 2 | . 2 . . . . . Database Lockouts 1 | . . . . . 1 . Manual 44 | . 15 . . . 29 . Terminals 49 | . 15 . . . 34 . Fabricators . | . . . . . . . Repair Stations . | . . . . . . . Recycling Units 7 | . 3 . . . 4 . Scanalyzers 2 | . . . . . 2 . Garrison Access 1 | . . . . . 1 . Terminal Hacks 15 | . 1 . 4 . 10 . Record 7 | . . . 4 . 3 . Robot Analysis 1 | . . . . . 1 . Prototype ID Bank 2 | . . . . . 2 . Terminal Index 1 | . . . . . 1 . Surveillance Status 1 | . . . . . 1 . Transport Status 1 | . . . . . 1 . Registered Components 1 | . . . . . 1 . Zone Layout 1 | . 1 . . . . . Fabricator Hacks . | . . . . . . . Repair Station Hacks . | . . . . . . . Recycling Unit Hacks 4 | . 2 . . . 2 . Report Inventory 3 | . 1 . . . 2 . Retrieve Components 1 | . 1 . . . . . Scanalyzer 2 | . . . . . 2 . Retrieve Study 2 | . . . . . 2 . Garrison Access Hacks 1 | . . . . . 1 . Unlock Access 1 | . . . . . 1 . Unauthorized Hacks 18 | . 6 . . . 12 . Terminals 15 | . 5 . . . 10 . Track 3 | . 1 . . . 2 . Assimilate 1 | . 1 . . . . . Botnet 4 | . 2 . . . 2 . Operators 2 | . 1 . . . 1 . Skim 5 | . . . . . 5 . Fabricators . | . . . . . . . Repair Stations . | . . . . . . . Recycling Units 3 | . 1 . . . 2 . Reject 3 | . 1 . . . 2 . Scanalyzers . | . . . . . . . Garrison Access . | . . . . . . . Data Cores Recovered . | . . . . . . . Used . | . . . . . . . Hacking Detections 15 | . 5 . . . 10 . Full Trace Events 1 | . 1 . . . . . Feedback Events . | . . . . . . . Feedback Blocked . | . . . . . . . Robot Schematics Acquired . | . . . . . . . Robots Built . | . . . . . . . Authchips . | . . . . . . . Time . | . . . . . . . Total Robot Build Rating . | . . . . . . . Part Schematics Acquired . | . . . . . . . Parts Built . | . . . . . . . Authchips . | . . . . . . . Time . | . . . . . . . Total Part Build Rating . | . . . . . . . Part Studies Acquired 2 | . . . . . 2 . Parts Repaired . | . . . . . . . Time . | . . . . . . . Parts Recycled . | . . . . . . . Recycled Matter . | . . . . . . . Retrieved Matter . | . . . . . . . Retrieved Components 10 | . 10 . . . . . Parts Scanalyzed . | . . . . . . . Part Schematics Acquired . | . . . . . . . Parts Damaged . | . . . . . . . Bothacking | -11 -10 -10 -10 -9 -8 -8 ------------ Run | Yrd Mat Min Exi Min Mat Gar Used RIF Installer 1 | . . . . . . 1 Robots Hacked . | . . . . . . . Non-combat . | . . . . . . . Combat . | . . . . . . . Robot Hacks Applied . | . . . . . . . Relay Couplers Released . | . . . . . . . Fabnet Peak Effective % . | . . . . . . . Robots Rewired 6 | . . . . . . 6 Allies Hacked . | . . . . . . . Hacks Repelled . | . . . . . . . Allies | -11 -10 -10 -10 -9 -8 -8 -------- Run | Yrd Mat Min Exi Min Mat Gar Total Allies 7 | . . 1 . . . 6 Largest Group 4 | . . 1 . . . 4 Highest-Rated Group 90 | . . 31 . . . 90 Highest-Rated Ally 31 | . . 31 . . . 24 Total Orders . | . . . . . . . Ally Attacks 25 | . . 8 . . . 17 Total Damage 538 | . . 127 . . . 411 Kills 6 | . . 1 . . . 5 Allies Corrupted 2 | . . . . . . 2 Allies Melted . | . . . . . . . Intel | -11 -10 -10 -10 -9 -8 -8 ------- Run | Yrd Mat Min Exi Min Mat Gar Active Infowar (turns) 760 | 36 524 187 13 . . . Seismic 760 | 36 524 187 13 . . . Robot Analysis Total 1 | . . . . . 1 . Derelict Logs Recovered 1 | . . . . 1 . . Drone Launches . | . . . . . . . Drone Recoveries . | . . . . . . . Exploration | -11 -10 -10 -10 -9 -8 -8 ------------- Run | Yrd Mat Min Exi Min Mat Gar Turns Passed 2847 | 94 524 187 264 88 1435 255 Spaces Moved 2207 | 60 422 176 237 66 1042 204 Core 1 | 1 . . . . . . Treads 320 | . . . . . 320 . Legs 74 | . . . . . 74 . Wheels 1056 | 59 422 176 237 66 96 . Hover 756 | . . . . . 552 204 Flight . | . . . . . . . Fastest Speed 48 | 50 90 95 110 110 48 48 Average Speed 94 | 87 98 98 110 114 97 48 Slowest Speed 270 | 90 105 110 110 125 270 112 Overloaded Moves . | . . . . . . . Propulsion Burnouts . | . . . . . . . Robots Hopped . | . . . . . . . Potential Cave-ins . | . . . . . . . Cave-ins Triggered . | . . . . . . . Exploration Rate (%) 40 | 4 65 42 60 22 76 16 Regions Visited 6 Branch Regions 3 Pre-discovered Areas . | . . . . . . . Known Exits Taken 1 | . . . . . 1 . Unknown Exits Taken 5 | 1 1 1 1 1 . . Scrap Searched 1 | . . . . 1 . . Spaces Dug 11 | . 2 . . . 5 4 Terrain Destroyed 42 | . 2 . . . 23 17 Melee . | . . . . . . . Projectile 7 | . 2 . . . 5 . AOE 35 | . . . . . 18 17 Terrain Rammed . | . . . . . . . Walls Destroyed . | . . . . . . . Machines Disabled . | . . . . . . . Actions | -11 -10 -10 -10 -9 -8 -8 --------- Run | Yrd Mat Min Exi Min Mat Gar Total 2744 | 82 492 183 242 72 1346 327 Wait 126 | 4 26 2 . . 91 3 Move 2202 | 59 421 175 236 65 1042 204 Hop . | . . . . . . . Pick Up 53 | 4 15 1 . 2 29 2 Fast Attach 33 | 7 2 . . . 24 . Attach 19 | . 1 . 2 2 9 5 Detach 4 | . . . 2 . 2 . Swap 20 | . 2 2 . . 12 4 Drop 53 | . 6 . 2 . 45 . Fire 153 | 8 19 3 . 3 92 28 Melee 4 | . . . . . . 4 Ram . | . . . . . . . Kick . | . . . . . . . Crush . | . . . . . . . Escape Stasis 19 | . . . . . . 19 Rewire 58 | . . . . . . 58 Trap . | . . . . . . . Miscellaneous . | . . . . . . . Route ------- -11/Scrapyard -10/Materials (discovered 4 exits: [*Mat x2] / [*Min x2]) -10/Mines -10/Exiles -9/Mines -8/Materials (discovered 5 exits: [*Fac x2] / [*Sto x2] / Gar) -8/Garrison History --------- Turn | Location | Event 12 | -11/Scrapyard | Discovered new exit (range 16) 95 | -11/Scrapyard | Entered Materials 302 | -10/Materials | Build established: Mutant 460 | -10/Materials | Discovered new exit (range 7) 499 | -10/Materials | Discovered new exit (range 8) 543 | -10/Materials | Discovered new exit (range 6) 596 | -10/Materials | Discovered new exit (range 5) 619 | -10/Materials | Entered Mines 658 | -10/Mines | Deemed a non-threat by the Exiles lab entrance 658 | -10/Mines | Discovered new exit (range 5) 730 | -10/Mines | Met a Derelict testing a Signal Generator 736 | -10/Mines | Found Signal Generator 806 | -10/Mines | Entered Exiles 806 | -10/Exiles | Found Exiles lab abandoned 1058 | -10/Exiles | Discovered new exit (range 14) 1070 | -10/Exiles | Entered Mines 1073 | -9/Mines | Learned Materials trap positions 1095 | -9/Mines | Assembled infested the area 1100 | -9/Mines | Assisted by a Guerilla fighting off Assembled 1111 | -9/Mines | Met a Derelict bent on vengeance 1150 | -9/Mines | Discovered new exit (range 7) 1158 | -9/Mines | Entered Materials 1158 | -8/Materials | Evolved 4 slots: Propulsion x2, Utility x2 1159 | -8/Materials | Loaded intel: 26 trap records 1459 | -8/Materials | Build established: Scavenger-Mutant 1843 | -8/Materials | Discovered new exit (range 16) 1919 | -8/Materials | Build established: Mutant 2188 | -8/Materials | Destroyed 8 combat bots 2227 | -8/Materials | Central database locked down 2234 | -8/Materials | Discovered new exit (range 10) 2381 | -8/Materials | Discovered new exit (range 6) 2471 | -8/Materials | Discovered new exit (range 10) 2593 | -8/Materials | Identified exit to Garrison 2593 | -8/Materials | Entered Garrison 2607 | -8/Garrison | Triggered checkpoint 2653 | -8/Garrison | Triggered checkpoint 2706 | -8/Garrison | Lost 4 parts (1p3n) 2721 | -8/Garrison | Build established: Hacker-Mutant 2815 | -8/Garrison | Installed Relay Interface Framework 2848 | -8/Garrison | Self-destructed Last Messages --------------- 02783_ X-57 Shotgunner rewired. 02784_ Attempting to rewire X-57 Shotgunner. 02785_ X-57 Shotgunner rewired. 02787_ Attempting to rewire X-57 Shotgunner. 02797_ X-57 Shotgunner rewired. 02800_ Acquired 45 matter. 02803_ Acquired Lgt. Nuclear Core. 02806_ Acquired 31 matter. 02810_ Acquired Adv. Melee Analysis Suite. Initiating installation procedure... 02815_ Relay Interface Framework installed. 02831_ Sneak attack on L-31 Rogue. 02832_ L-31 Rogue springs to life. 02837_ Y-45 Defender springs to life. 02840_ Reaction Control System destroyed. 02840_ Airjet+ destroyed. 02846_ Y-45 Defender destroyed. 02846_ Airjet+ destroyed. 02847_ L-31 Rogue destroyed. [Achievement: Just Browsing] Map ----- +----------------------------------------------------+ | | | | | | | | | | | | | | | ?????????????????????????????????????????????????? | | ?????????????????????????????????????????????????? | | ?????????????????????????????????????????????????? | | ?????????????????????????????????????????????????? | | ?????????????????????????????????????????????????? | | ?????????????????????????????????????????????????? | | ?????????????????????????????????????????????????? | | ?????????????????????????????????????????????????? | | ?????????????????????????????????????????????????? | | ?????????????????????????????????????????????????? | | ?????????????????????????????????????????????????? | | ?????????????????????????????????????????????????? | | ?????????????????????????????????????????????????? | | ??????####??####??###???####??####???????????????? | | ??????# !#??# #??# ]???# e#??# #???????????????? | | ??????# !#??# #??# ]???# e#??# #???????????????? | | ??????# #??# #??# ]???#/e#??# #???????????????? | | ??????# ##??# ##??# #???#*##??# ##???????????????? | | #####?# #???# #???# #???#@#???# #????????????????? | | """^### ##### #####/#####=##### ######???????????? | | ^ [%===! *%!= xx* #???????????? | | """ ######### #####%#####%##### #### #???????????? | | #####???????###???###???###???###??# #???????????? | | ???????????????????????????????????# #???????????? | | ???????????????????????????????????# #???????????? | | ???????????????????????????????????# #???????????? | | ???????????????????????????????????# #???????????? | | ???????????????????????????????????# #???????????? | | ???????????????????????????????????# #???????????? | | ???????????????????????????????????# #???????????? | | ####???????????????????????????????# #???????????? | | #???????????????????????????###?# #???????????? | | ############################# ### #???????????? | | ^ #???????????? | | ^ #???????????? | | [ * #???????????? | | #########"""#####[% ##### ###### #???????????? | | ????????????????#%= #???# #????# #???????????? | | ????????????????## ##???## ##????# #???????????? | | ?????????????????# #?????# ????# #???????????? | | ?????????????????# #?????# #???# #???????????? | | ?????????????????# #????? ##???# #???????????? | | ?????????????????# #????? #????# #???????????? | +----------------------------------------------------+ Best States ------------- Heat Dissipation 45 Energy Generation 14 Energy Capacity 515 Matter Stores 300 Matter Capacity 300 Sight Range 16 Terrain Scan Density 10 Armor Coverage 150 Resistance: TH 10 Evasion (%) 63 Recoil Reduction 4 Offensive Hacking 10 Defensive Hacking 10 Item Schematics ----------------- None Robot Schematics ------------------ None Fabricated ------------ Nothing Repaired ---------- Nothing Studied --------- Airjet | -8/Materials | Hacked Minigun | -8/Materials | Hacked Alien Tech Used ----------------- None Achievements -------------- Bumper Bots Just Browsing Challenges ------------ None Game ------ Seed SupercompositeRemoteLaser Manual? 0 Play Time 01:15:44 Cumulative 13.7 hours Start 2025.12.24 @ 19:38:29 End 2025.12.25 @ 07:15:11 Sessions 3 Manual Loads 0 Difficulty Rogue Special Mode None Game No. 9 Rogue 9 Adventurer 0 Explorer 0 Win Type - Total 0 Types 0/0/0/0/0/0/0/0/0/0 Lore% 10 Gallery% 25 Achievement% 24 Wizard Run 0 Options --------- Layout 1 ASCII 0 Keyboard 0 Movement Mouse Keybinds 0 Fullscreen 1 Font 20/SmallcapsGlow Map View 54x42 Zoom Use 0% Tactical HUD 1 Map Filters NONE Filters NONE Steam 0 RUN: 6478c23f-d2b4-44f5-bb33-b98a7d38bd03